[Event "GrandPrix_30.05"]
[Site "Chess.com"]
[Date "2020.05.30"]
[Round "4"]
[White "kirillshevchenko"]
[Black "wnstop"]
[Result "1-0"]
[WhiteElo "2695"]
[BlackElo "2276"]
[TimeControl "600+2"]
[EndTime "9:52:52 PDT"]
[Termination "kirillshevchenko won by resignation"]

1. e4 {[%clk 0:10:01.9]} 1... c5 {[%clk 0:09:59.1]} 2. Nf3 {[%clk 0:10:00.1]}
2... Nc6 {[%clk 0:10:00.4]} 3. Nc3 {[%clk 0:10:00.8]} 3... e5 {[%clk 0:10:00.4]}
4. Bc4 {[%clk 0:10:00.8]} 4... Be7 {[%clk 0:10:01.3]} 5. d3 {[%clk 0:10:00.1]}
5... d6 {[%clk 0:10:02.1]} 6. Nd2 {[%clk 0:10:00.6]} 6... Nf6 {[%clk 0:10:00.3]}
7. Nf1 {[%clk 0:10:01.1]} 7... Nd7 {[%clk 0:10:01.7]} 8. Ne3 {[%clk 0:10:01.7]}
8... Nb6 {[%clk 0:10:02.2]} 9. h4 {[%clk 0:10:01.7]} 9... O-O {[%clk 0:08:27.4]}
10. a4 {[%clk 0:09:49.1]} 10... Kh8 {[%clk 0:08:21.8]} 11. Ncd5 {[%clk 0:09:08]}
11... Be6 {[%clk 0:08:03.3]} 12. c3 {[%clk 0:07:45.2]} 12... Qd7 {[%clk
0:07:47.2]} 13. Nxb6 {[%clk 0:07:23.2]} 13... axb6 {[%clk 0:07:49.1]} 14. g4
{[%clk 0:07:24.4]} 14... Bd8 {[%clk 0:06:37.8]} 15. Nd5 {[%clk 0:05:04.3]} 15...
Bxg4 {[%clk 0:05:57.3]} 16. f3 {[%clk 0:05:03]} 16... Bh5 {[%clk 0:05:18.2]} 17.
Ne3 {[%clk 0:04:36.7]} 17... Ne7 {[%clk 0:05:04]} 18. Qe2 {[%clk 0:04:18.1]}
18... f5 {[%clk 0:04:38.3]} 19. Qg2 {[%clk 0:04:12.4]} 19... fxe4 {[%clk
0:03:59.1]} 20. fxe4 {[%clk 0:04:12]} 20... Bf3 {[%clk 0:02:54.8]} 21. O-O
{[%clk 0:03:46.5]} 21... Ng6 {[%clk 0:02:11.9]} 22. Rxf3 {[%clk 0:03:41.6]}
22... Nf4 {[%clk 0:01:39.1]} 23. Qg4 {[%clk 0:03:27.1]} 23... Qe8 {[%clk
0:01:05.3]} 24. Nf5 {[%clk 0:02:31.7]} 24... g6 {[%clk 0:00:27.1]} 25. Bxf4
{[%clk 0:02:31.1]} 25... gxf5 {[%clk 0:00:19.1]} 26. Bh6 {[%clk 0:02:29.3]}
26... fxg4 {[%clk 0:00:07.6]} 27. Rxf8+ {[%clk 0:02:29.8]} 27... Qxf8 {[%clk
0:00:08.2]} 28. Bxf8 {[%clk 0:02:31.7]} 28... Bxh4 {[%clk 0:00:06.6]} 29. Bxd6
{[%clk 0:02:32.3]} 29... Bf6 {[%clk 0:00:07.6]} 30. Bc7 {[%clk 0:02:27]} 30...
h5 {[%clk 0:00:07.7]} 31. Bxb6 {[%clk 0:02:27.6]} 31... Rc8 {[%clk 0:00:06.7]}
32. Bd5 {[%clk 0:02:27.7]} 32... Kg7 {[%clk 0:00:07]} 33. a5 {[%clk 0:02:28.4]}
33... Rb8 {[%clk 0:00:05.4]} 34. Bc7 {[%clk 0:02:27]} 34... Rc8 {[%clk
0:00:05.3]} 35. Bb6 {[%clk 0:02:21.9]} 35... Rb8 {[%clk 0:00:05.5]} 36. Bxc5
{[%clk 0:02:23.3]} 36... h4 {[%clk 0:00:06.3]} 37. Ba7 {[%clk 0:02:03.6]} 37...
Ra8 {[%clk 0:00:06.6]} 38. Be3 {[%clk 0:02:04.7]} 38... Rb8 {[%clk 0:00:06.5]}
39. b4 {[%clk 0:02:03.6]} 39... Kg6 {[%clk 0:00:06.3]} 40. b5 {[%clk 0:02:04.3]}
40... h3 {[%clk 0:00:07.8]} 41. Be6 {[%clk 0:02:02.2]} 41... Kh5 {[%clk
0:00:06.3]} 42. Rf1 {[%clk 0:02:02.8]} 1-0

[Event "GrandPrix_30.05"]
[Site "Chess.com"]
[Date "2020.05.30"]
[Round "4"]
[White "Karateloru"]
[Black "Malysch"]
[Result "1/2-1/2"]
[WhiteElo "2185"]
[BlackElo "2284"]
[TimeControl "600+2"]
[EndTime "9:52:56 PDT"]
[Termination "Game drawn by repetition"]

1. e4 {[%clk 0:10:01.9]} 1... Nf6 {[%clk 0:10:01.4]} 2. Nc3 {[%clk 0:09:59.7]}
2... d5 {[%clk 0:10:01.6]} 3. e5 {[%clk 0:09:59.7]} 3... Nfd7 {[%clk 0:10:02.2]}
4. d4 {[%clk 0:09:59.8]} 4... c5 {[%clk 0:10:02.6]} 5. f4 {[%clk 0:09:48.9]}
5... cxd4 {[%clk 0:10:01.3]} 6. Nb5 {[%clk 0:09:49.7]} 6... Nc6 {[%clk
0:09:58.8]} 7. Nf3 {[%clk 0:09:49.9]} 7... Nc5 {[%clk 0:09:57]} 8. Nbxd4 {[%clk
0:09:48.5]} 8... Bg4 {[%clk 0:09:54.4]} 9. Nxc6 {[%clk 0:09:47.6]} 9... bxc6
{[%clk 0:09:53.3]} 10. Be3 {[%clk 0:09:46]} 10... e6 {[%clk 0:09:50.9]} 11. Be2
{[%clk 0:09:44.2]} 11... Rb8 {[%clk 0:09:23.3]} 12. b3 {[%clk 0:09:36.5]} 12...
Ne4 {[%clk 0:09:20.5]} 13. O-O {[%clk 0:09:33.2]} 13... Qa5 {[%clk 0:09:07.4]}
14. Kh1 {[%clk 0:09:22.9]} 14... Be7 {[%clk 0:08:36.4]} 15. Nd4 {[%clk
0:08:55.7]} 15... Bxe2 {[%clk 0:07:20.5]} 16. Qxe2 {[%clk 0:08:57.6]} 16... Qc7
{[%clk 0:07:20.5]} 17. f5 {[%clk 0:08:51.7]} 17... c5 {[%clk 0:07:06.3]} 18.
fxe6 {[%clk 0:08:33.8]} 18... cxd4 {[%clk 0:06:57.7]} 19. exf7+ {[%clk
0:08:33.2]} 19... Kf8 {[%clk 0:06:53.6]} 20. Bxd4 {[%clk 0:08:32.8]} 20... Qc6
{[%clk 0:04:53.1]} 21. c4 {[%clk 0:07:51.8]} 21... Rd8 {[%clk 0:04:09.2]} 22.
cxd5 {[%clk 0:07:14]} 22... Qxd5 {[%clk 0:04:07.1]} 23. Rad1 {[%clk 0:07:14.4]}
23... Qc6 {[%clk 0:03:10.7]} 24. Rfe1 {[%clk 0:06:11.2]} 24... Ng5 {[%clk
0:03:06.6]} 25. e6 {[%clk 0:06:10.5]} 25... h5 {[%clk 0:02:32.8]} 26. Qe5 {[%clk
0:05:08.2]} 26... Nxe6 {[%clk 0:01:45.4]} 27. Qxe6 {[%clk 0:05:04.9]} 27... Qxe6
{[%clk 0:01:47.3]} 28. Rxe6 {[%clk 0:05:05.5]} 28... Kxf7 {[%clk 0:01:42.3]} 29.
Re2 {[%clk 0:04:52.4]} 29... Bf6 {[%clk 0:01:34.9]} 30. Red2 {[%clk 0:04:53.2]}
30... Rhe8 {[%clk 0:01:24.7]} 31. Bxa7 {[%clk 0:04:27.4]} 31... Rxd2 {[%clk
0:01:23]} 32. Rxd2 {[%clk 0:04:28]} 32... Re1+ {[%clk 0:01:23.8]} 33. Bg1 {[%clk
0:04:28.2]} 33... Be7 {[%clk 0:00:44.5]} 34. g3 {[%clk 0:04:20.7]} 34... Bc5
{[%clk 0:00:41.1]} 35. Rg2 {[%clk 0:04:21.4]} 35... Ra1 {[%clk 0:00:26.8]} 36.
h3 {[%clk 0:04:07.6]} 36... Kf6 {[%clk 0:00:20.1]} 37. Kh2 {[%clk 0:04:00.3]}
37... Bxg1+ {[%clk 0:00:20]} 38. Rxg1 {[%clk 0:04:01.5]} 38... Rxa2+ {[%clk
0:00:21.9]} 39. Rg2 {[%clk 0:04:03]} 39... Ra5 {[%clk 0:00:19.4]} 40. Rb2 {[%clk
0:04:04]} 40... Ke5 {[%clk 0:00:19.3]} 41. b4 {[%clk 0:04:01.6]} 41... Rb5
{[%clk 0:00:20.3]} 42. Kg2 {[%clk 0:04:02.3]} 42... Ke4 {[%clk 0:00:19.2]} 43.
Kf2 {[%clk 0:04:02.4]} 43... g5 {[%clk 0:00:17.5]} 44. Ke2 {[%clk 0:04:01.4]}
44... Kd4 {[%clk 0:00:17.6]} 45. Kf3 {[%clk 0:04:00.9]} 45... Kc3 {[%clk
0:00:18.3]} 46. Re2 {[%clk 0:03:57.7]} 46... Rxb4 {[%clk 0:00:16.8]} 47. Re3+
{[%clk 0:03:58.2]} 47... Kd2 {[%clk 0:00:15.5]} 48. Re4 {[%clk 0:03:28.7]} 48...
Rb3+ {[%clk 0:00:13.2]} 49. Kf2 {[%clk 0:03:29.3]} 49... Rb8 {[%clk 0:00:06.7]}
50. Rd4+ {[%clk 0:03:28.5]} 50... Kc3 {[%clk 0:00:07]} 51. Rd5 {[%clk
0:03:29.4]} 51... g4 {[%clk 0:00:05.5]} 52. h4 {[%clk 0:03:25.2]} 52... Rf8+
{[%clk 0:00:05.7]} 53. Kg2 {[%clk 0:03:25.8]} 53... Rh8 {[%clk 0:00:05.6]} 54.
Kf2 {[%clk 0:03:24.9]} 54... Rf8+ {[%clk 0:00:05.6]} 55. Kg1 {[%clk 0:03:23]}
55... Rh8 {[%clk 0:00:05.3]} 56. Kf2 {[%clk 0:03:07.4]} 56... Rf8+ {[%clk
0:00:05.4]} 1/2-1/2

[Event "GrandPrix_30.05"]
[Site "Chess.com"]
[Date "2020.05.30"]
[Round "4"]
[White "Kobalia"]
[Black "Micki-taryan"]
[Result "1-0"]
[WhiteElo "2445"]
[BlackElo "2492"]
[TimeControl "600+2"]
[EndTime "9:53:00 PDT"]
[Termination "Kobalia won by resignation"]

1. e4 {[%clk 0:10:01.9]} 1... e6 {[%clk 0:09:57.4]} 2. d3 {[%clk 0:10:01.3]}
2... d5 {[%clk 0:09:56.6]} 3. Nd2 {[%clk 0:10:00.3]} 3... c5 {[%clk 0:09:53.3]}
4. Ngf3 {[%clk 0:09:59.8]} 4... Nc6 {[%clk 0:09:53.7]} 5. g3 {[%clk 0:10:01]}
5... Nf6 {[%clk 0:09:46.1]} 6. Bg2 {[%clk 0:10:00.6]} 6... Bd6 {[%clk
0:09:46.8]} 7. O-O {[%clk 0:10:00.8]} 7... O-O {[%clk 0:09:47.7]} 8. Re1 {[%clk
0:09:59.8]} 8... Bc7 {[%clk 0:09:49]} 9. c3 {[%clk 0:09:55.6]} 9... b5 {[%clk
0:09:49.8]} 10. a4 {[%clk 0:09:41.4]} 10... b4 {[%clk 0:09:39]} 11. exd5 {[%clk
0:09:37.6]} 11... exd5 {[%clk 0:09:00.9]} 12. Nb3 {[%clk 0:09:36.2]} 12... Bd6
{[%clk 0:08:51.7]} 13. Be3 {[%clk 0:09:13.3]} 13... c4 {[%clk 0:08:15.1]} 14.
dxc4 {[%clk 0:09:05.3]} 14... dxc4 {[%clk 0:08:17]} 15. Nbd4 {[%clk 0:09:05.1]}
15... Nxd4 {[%clk 0:08:18.2]} 16. Nxd4 {[%clk 0:08:36.9]} 16... Bg4 {[%clk
0:08:11.6]} 17. Bf3 {[%clk 0:08:26.7]} 17... Qc8 {[%clk 0:07:22]} 18. Nb5 {[%clk
0:08:07.9]} 18... Bxf3 {[%clk 0:07:16.2]} 19. Qxf3 {[%clk 0:08:05.3]} 19... Bc5
{[%clk 0:07:16.8]} 20. cxb4 {[%clk 0:06:10.1]} 20... Bxb4 {[%clk 0:07:09.7]} 21.
Rec1 {[%clk 0:06:10.5]} 21... a6 {[%clk 0:06:36.8]} 22. Nd4 {[%clk 0:06:11.1]}
22... Re8 {[%clk 0:05:42.6]} 23. Nc6 {[%clk 0:05:57.7]} 23... Bf8 {[%clk
0:05:42.3]} 24. Rxc4 {[%clk 0:05:56.6]} 24... Qe6 {[%clk 0:05:37.3]} 25. Rac1
{[%clk 0:05:41.9]} 25... h5 {[%clk 0:05:23.7]} 26. b4 {[%clk 0:04:44.7]} 26...
Ng4 {[%clk 0:05:12]} 27. Bd4 {[%clk 0:04:40.6]} 27... Qg6 {[%clk 0:04:36.6]} 28.
h3 {[%clk 0:04:32.4]} 28... Nh6 {[%clk 0:04:36.9]} 29. Bc5 {[%clk 0:03:57.4]}
29... Nf5 {[%clk 0:03:54.3]} 30. Bxf8 {[%clk 0:03:55.7]} 30... Kxf8 {[%clk
0:03:56.2]} 31. b5 {[%clk 0:03:47]} 31... axb5 {[%clk 0:03:55.3]} 32. axb5
{[%clk 0:03:47.6]} 32... Nd6 {[%clk 0:03:53.3]} 33. Rb4 {[%clk 0:03:39.6]} 33...
Qg5 {[%clk 0:03:47.9]} 34. Rcb1 {[%clk 0:03:37.3]} 34... Ra2 {[%clk 0:03:10.7]}
35. b6 {[%clk 0:03:35.3]} 35... Nb7 {[%clk 0:03:10.1]} 36. Rd4 {[%clk
0:03:15.6]} 36... Qg6 {[%clk 0:02:54.3]} 37. Rbd1 {[%clk 0:02:58.4]} 37... Rb2
{[%clk 0:02:40.4]} 38. Ne5 {[%clk 0:02:23.8]} 38... Qe6 {[%clk 0:02:34.7]} 39.
Nd7+ {[%clk 0:02:17.8]} 39... Kg8 {[%clk 0:02:33.4]} 40. Qxb7 {[%clk 0:02:15.9]}
40... h4 {[%clk 0:02:11.4]} 41. g4 {[%clk 0:02:00.6]} 41... Rxf2 {[%clk
0:02:11.8]} 42. Re4 {[%clk 0:01:52]} 42... Qxe4 {[%clk 0:01:21.1]} 43. Qxe4
{[%clk 0:01:50.7]} 43... Rxe4 {[%clk 0:01:23]} 44. Kxf2 {[%clk 0:01:49.2]} 44...
Rb4 {[%clk 0:01:24.9]} 45. Rc1 {[%clk 0:01:42.6]} 45... Rb2+ {[%clk 0:01:17.8]}
46. Kg1 {[%clk 0:01:40.8]} 46... Kh7 {[%clk 0:00:59.9]} 47. Rc7 {[%clk
0:01:39.3]} 47... Rb1+ {[%clk 0:01:01.5]} 48. Kf2 {[%clk 0:01:39.7]} 48... Rb2+
{[%clk 0:01:03.4]} 49. Ke1 {[%clk 0:01:40.8]} 49... Rb1+ {[%clk 0:00:54.2]} 50.
Kd2 {[%clk 0:01:41]} 50... Rxb6 {[%clk 0:00:56.1]} 51. Nxb6 {[%clk 0:01:40.9]}
1-0

[Event "GrandPrix_30.05"]
[Site "Chess.com"]
[Date "2020.05.30"]
[Round "4"]
[White "Yurovskykh_Alexander"]
[Black "GadimbayliA"]
[Result "0-1"]
[WhiteElo "2319"]
[BlackElo "2532"]
[TimeControl "600+2"]
[EndTime "9:53:01 PDT"]
[Termination "GadimbayliA won by resignation"]

1. d4 {[%clk 0:10:00.5]} 1... d5 {[%clk 0:09:55.7]} 2. Bf4 {[%clk 0:10:00]} 2...
Nf6 {[%clk 0:09:56.4]} 3. e3 {[%clk 0:10:00.3]} 3... Nc6 {[%clk 0:09:55.7]} 4.
Nf3 {[%clk 0:09:57.1]} 4... Nh5 {[%clk 0:09:56.7]} 5. Bg5 {[%clk 0:09:54.4]}
5... h6 {[%clk 0:09:57.8]} 6. Bh4 {[%clk 0:09:55.6]} 6... g5 {[%clk 0:09:58.9]}
7. Bg3 {[%clk 0:09:51.1]} 7... Nxg3 {[%clk 0:09:59.8]} 8. hxg3 {[%clk 0:09:53]}
8... g4 {[%clk 0:10:01.4]} 9. Nfd2 {[%clk 0:09:46.6]} 9... e5 {[%clk 0:10:02.2]}
10. Bb5 {[%clk 0:09:25.7]} 10... Bg7 {[%clk 0:09:57.7]} 11. dxe5 {[%clk
0:09:08.7]} 11... Bxe5 {[%clk 0:09:59.6]} 12. c3 {[%clk 0:09:09.7]} 12... h5
{[%clk 0:08:33.3]} 13. Na3 {[%clk 0:08:59.4]} 13... Bf5 {[%clk 0:06:55.3]} 14.
Nc2 {[%clk 0:08:48.6]} 14... Kf8 {[%clk 0:04:50.5]} 15. Nd4 {[%clk 0:08:31.9]}
15... Nxd4 {[%clk 0:03:55.1]} 16. cxd4 {[%clk 0:08:31.3]} 16... Bd6 {[%clk
0:03:48.8]} 17. Qb3 {[%clk 0:08:29.5]} 17... c6 {[%clk 0:03:41]} 18. Bd3 {[%clk
0:08:28.6]} 18... Bxd3 {[%clk 0:03:42.2]} 19. Qxd3 {[%clk 0:08:30.5]} 19... Qf6
{[%clk 0:03:43.8]} 20. O-O-O {[%clk 0:07:25.9]} 20... Re8 {[%clk 0:03:22.6]} 21.
f4 {[%clk 0:05:41.2]} 21... gxf3 {[%clk 0:03:06]} 22. gxf3 {[%clk 0:05:30.2]}
22... Bxg3 {[%clk 0:02:51.1]} 23. e4 {[%clk 0:04:42.7]} 23... h4 {[%clk
0:02:23.2]} 24. Rdg1 {[%clk 0:04:30.5]} 24... Bf4 {[%clk 0:01:13.5]} 25. e5
{[%clk 0:04:21.6]} 25... Qh6 {[%clk 0:01:13.1]} 26. Kc2 {[%clk 0:04:18.3]} 26...
Bxd2 {[%clk 0:01:07.5]} 27. Qxd2 {[%clk 0:04:20.2]} 27... Qxd2+ {[%clk 0:01:09]}
28. Kxd2 {[%clk 0:04:22.1]} 28... Re6 {[%clk 0:01:02.9]} 29. Rh3 {[%clk
0:04:12.9]} 29... Reh6 {[%clk 0:00:58.8]} 30. Ke3 {[%clk 0:03:58.5]} 30... Ke7
{[%clk 0:00:54.2]} 31. f4 {[%clk 0:03:57.1]} 31... Rh5 {[%clk 0:00:52]} 32. Rg5
{[%clk 0:03:42.3]} 32... Rxg5 {[%clk 0:00:39.1]} 33. fxg5 {[%clk 0:03:44.2]}
33... Ke6 {[%clk 0:00:41]} 34. Kf4 {[%clk 0:03:44.1]} 34... b6 {[%clk
0:00:42.3]} 35. b4 {[%clk 0:03:24]} 35... a5 {[%clk 0:00:33.6]} 36. bxa5 {[%clk
0:03:23.9]} 36... bxa5 {[%clk 0:00:35.5]} 37. Rc3 {[%clk 0:03:07.7]} 37... h3
{[%clk 0:00:16.5]} 38. Rxc6+ {[%clk 0:03:00.6]} 38... Kd7 {[%clk 0:00:17.4]} 39.
Rc1 {[%clk 0:03:01.8]} 39... h2 {[%clk 0:00:18.5]} 40. Rh1 {[%clk 0:03:03.1]}
40... Rh4+ {[%clk 0:00:07.2]} 41. Kg3 {[%clk 0:02:51.8]} 41... Rxd4 {[%clk
0:00:08.3]} 42. Rxh2 {[%clk 0:02:52.5]} 42... Re4 {[%clk 0:00:09.7]} 43. Rb2
{[%clk 0:02:43.7]} 43... Rxe5 {[%clk 0:00:06.9]} 44. Rb5 {[%clk 0:02:37.7]}
44... Ke6 {[%clk 0:00:03.8]} 45. Rxa5 {[%clk 0:02:34.1]} 45... Rxg5+ {[%clk
0:00:04.8]} 46. Kf4 {[%clk 0:02:34.5]} 46... Rf5+ {[%clk 0:00:06.4]} 47. Ke3
{[%clk 0:02:29]} 47... d4+ {[%clk 0:00:07.3]} 0-1

[Event "GrandPrix_30.05"]
[Site "Chess.com"]
[Date "2020.05.30"]
[Round "4"]
[White "Herracek"]
[Black "NikolaGry"]
[Result "0-1"]
[WhiteElo "2312"]
[BlackElo "2168"]
[TimeControl "600+2"]
[EndTime "9:53:02 PDT"]
[Termination "NikolaGry won by resignation"]

1. c4 {[%clk 0:10:01.9]} 1... c5 {[%clk 0:09:58.1]} 2. Nc3 {[%clk 0:10:01.4]}
2... b6 {[%clk 0:09:56.1]} 3. g3 {[%clk 0:09:57.2]} 3... Bb7 {[%clk 0:09:56.1]}
4. Nf3 {[%clk 0:09:58.6]} 4... Bxf3 {[%clk 0:09:50.4]} 5. exf3 {[%clk
0:10:00.5]} 5... Nc6 {[%clk 0:09:50.9]} 6. b3 {[%clk 0:09:55.6]} 6... g6 {[%clk
0:09:51.1]} 7. Bb2 {[%clk 0:09:55.7]} 7... Bg7 {[%clk 0:09:51.5]} 8. Bg2 {[%clk
0:09:55.3]} 8... e6 {[%clk 0:09:50]} 9. Qb1 {[%clk 0:09:49.2]} 9... Nf6 {[%clk
0:09:26.5]} 10. O-O {[%clk 0:09:40.8]} 10... O-O {[%clk 0:09:23.9]} 11. f4
{[%clk 0:09:41.7]} 11... Rc8 {[%clk 0:08:57.3]} 12. Nb5 {[%clk 0:09:32.5]} 12...
d5 {[%clk 0:08:11.4]} 13. cxd5 {[%clk 0:09:21]} 13... Nxd5 {[%clk 0:07:55.3]}
14. Bxg7 {[%clk 0:08:49.9]} 14... Kxg7 {[%clk 0:07:53]} 15. Rd1 {[%clk
0:08:42.2]} 15... Qf6 {[%clk 0:06:57.8]} 16. a3 {[%clk 0:07:41.1]} 16... Rfd8
{[%clk 0:06:32]} 17. Bf1 {[%clk 0:06:25.3]} 17... Rd7 {[%clk 0:05:15.3]} 18. Qe4
{[%clk 0:05:01]} 18... Rcd8 {[%clk 0:04:15.2]} 19. Qa4 {[%clk 0:04:53]} 19...
Nde7 {[%clk 0:04:02.5]} 20. d3 {[%clk 0:04:35.7]} 20... h5 {[%clk 0:03:31.9]}
21. b4 {[%clk 0:04:32.2]} 21... cxb4 {[%clk 0:03:11.5]} 22. axb4 {[%clk
0:04:32.8]} 22... a5 {[%clk 0:02:54.5]} 23. bxa5 {[%clk 0:04:31.3]} 23... Nxa5
{[%clk 0:02:47.5]} 24. Rab1 {[%clk 0:04:21.4]} 24... Nd5 {[%clk 0:02:38.6]} 25.
Rdc1 {[%clk 0:04:18.5]} 25... h4 {[%clk 0:02:32.4]} 26. Bg2 {[%clk 0:03:42.1]}
26... Nb7 {[%clk 0:02:18.4]} 27. d4 {[%clk 0:03:29.5]} 27... Nd6 {[%clk
0:01:29.9]} 28. Bxd5 {[%clk 0:03:24.7]} 28... exd5 {[%clk 0:01:02.3]} 29. Nc7
{[%clk 0:03:15.1]} 29... Qf5 {[%clk 0:00:52.5]} 30. Rxb6 {[%clk 0:02:43.5]}
30... h3 {[%clk 0:00:43.4]} 31. Qc6 {[%clk 0:01:20.5]} 31... Rxc7 {[%clk
0:00:32]} 32. Qxc7 {[%clk 0:01:18.7]} 32... Qe4 {[%clk 0:00:31.4]} 33. f3 {[%clk
0:00:59.4]} 33... Qe3+ {[%clk 0:00:29.2]} 34. Kf1 {[%clk 0:01:00.5]} 34... Qxf3+
{[%clk 0:00:28.7]} 35. Ke1 {[%clk 0:01:01.8]} 35... Re8+ {[%clk 0:00:28.3]} 36.
Qe7 {[%clk 0:01:03]} 36... Rxe7+ {[%clk 0:00:28.2]} 0-1

[Event "GrandPrix_30.05"]
[Site "Chess.com"]
[Date "2020.05.30"]
[Round "4"]
[White "Pidzsy"]
[Black "OhanyanEminChess"]
[Result "1-0"]
[WhiteElo "2244"]
[BlackElo "2079"]
[TimeControl "600+2"]
[EndTime "9:53:05 PDT"]
[Termination "Pidzsy won by checkmate"]

1. Nf3 {[%clk 0:10:01.9]} 1... Nf6 {[%clk 0:09:53]} 2. g3 {[%clk 0:10:00.9]}
2... g6 {[%clk 0:09:51.9]} 3. Bg2 {[%clk 0:10:02.8]} 3... Bg7 {[%clk 0:09:52.7]}
4. d3 {[%clk 0:10:04]} 4... O-O {[%clk 0:09:52.2]} 5. e4 {[%clk 0:10:04.9]} 5...
d6 {[%clk 0:09:51.2]} 6. O-O {[%clk 0:10:06]} 6... c5 {[%clk 0:09:38.8]} 7. Bg5
{[%clk 0:10:04.9]} 7... Nc6 {[%clk 0:09:35.8]} 8. Qc1 {[%clk 0:09:58.5]} 8...
Bg4 {[%clk 0:09:28.6]} 9. c3 {[%clk 0:09:54.7]} 9... Qd7 {[%clk 0:09:10]} 10.
Na3 {[%clk 0:09:55]} 10... Bh3 {[%clk 0:08:57.4]} 11. Nc4 {[%clk 0:09:51.1]}
11... Bxg2 {[%clk 0:08:36.9]} 12. Kxg2 {[%clk 0:09:53]} 12... d5 {[%clk
0:08:34.8]} 13. Bxf6 {[%clk 0:09:39.3]} 13... Bxf6 {[%clk 0:08:27.4]} 14. exd5
{[%clk 0:09:29.7]} 14... Qxd5 {[%clk 0:08:29.3]} 15. Qc2 {[%clk 0:09:26.3]}
15... Rad8 {[%clk 0:07:38.9]} 16. Rad1 {[%clk 0:09:24.4]} 16... b5 {[%clk
0:06:51.5]} 17. Ne3 {[%clk 0:09:23.7]} 17... Qxa2 {[%clk 0:06:47.5]} 18. h4
{[%clk 0:09:13]} 18... Qe6 {[%clk 0:05:50]} 19. h5 {[%clk 0:09:10.9]} 19... g5
{[%clk 0:05:39.4]} 20. g4 {[%clk 0:08:57.4]} 20... Ne5 {[%clk 0:05:05.7]} 21.
Nxe5 {[%clk 0:08:49.9]} 21... Bxe5 {[%clk 0:03:43.6]} 22. Nf5 {[%clk 0:08:29]}
22... Qf6 {[%clk 0:03:43.5]} 23. d4 {[%clk 0:08:03.6]} 23... cxd4 {[%clk
0:03:37.7]} 24. cxd4 {[%clk 0:08:04.2]} 24... Bf4 {[%clk 0:02:48.4]} 25. d5
{[%clk 0:07:29.9]} 25... e6 {[%clk 0:02:32.5]} 26. dxe6 {[%clk 0:07:24]} 26...
fxe6 {[%clk 0:02:34.4]} 27. Rxd8 {[%clk 0:07:23.4]} 27... Rxd8 {[%clk
0:02:32.5]} 28. Qc6 {[%clk 0:07:18.4]} 28... Qe5 {[%clk 0:02:04.9]} 29. Rd1
{[%clk 0:07:05]} 29... Rf8 {[%clk 0:01:35.9]} 30. Nh6+ {[%clk 0:06:31.8]} 30...
Kg7 {[%clk 0:01:22]} 31. Rd7+ {[%clk 0:06:32.2]} 31... Kxh6 {[%clk 0:01:19.8]}
32. Qc2 {[%clk 0:06:32.9]} 32... Qh8 {[%clk 0:01:10.2]} 33. Qe4 {[%clk
0:06:29.9]} 33... Be5 {[%clk 0:00:51.4]} 34. Re7 {[%clk 0:06:03.4]} 34... Rf6
{[%clk 0:00:39.5]} 35. b4 {[%clk 0:05:59.3]} 35... Bc3 {[%clk 0:00:16.1]} 36.
Rxa7 {[%clk 0:05:48]} 36... Rxf2+ {[%clk 0:00:09.9]} 37. Kxf2 {[%clk 0:05:36.9]}
37... Qd4+ {[%clk 0:00:10.2]} 38. Kf3 {[%clk 0:05:38.5]} 38... Qxa7 {[%clk
0:00:06]} 39. Qxe6+ {[%clk 0:05:39.8]} 39... Kg7 {[%clk 0:00:07.5]} 40. h6+
{[%clk 0:05:41.5]} 40... Kf8 {[%clk 0:00:09]} 41. Qc8+ {[%clk 0:05:40.9]} 41...
Kf7 {[%clk 0:00:08.7]} 42. Qxc3 {[%clk 0:05:40.6]} 42... Qb7+ {[%clk 0:00:09.3]}
43. Kg3 {[%clk 0:05:40.3]} 43... Qb8+ {[%clk 0:00:08.2]} 44. Kh3 {[%clk
0:05:39.9]} 44... Qf8 {[%clk 0:00:07.5]} 45. Qf3+ {[%clk 0:05:29.2]} 45... Ke8
{[%clk 0:00:03.7]} 46. Qc6+ {[%clk 0:05:28.5]} 46... Kf7 {[%clk 0:00:03.9]} 47.
Qd7+ {[%clk 0:05:12.6]} 47... Kg6 {[%clk 0:00:03.5]} 48. Qc6+ {[%clk 0:04:36.2]}
48... Qf6 {[%clk 0:00:04.3]} 49. Qxb5 {[%clk 0:04:34.3]} 49... Qf3+ {[%clk
0:00:05.2]} 50. Kh2 {[%clk 0:04:35.8]} 50... Qf2+ {[%clk 0:00:06.8]} 51. Kh1
{[%clk 0:04:37.4]} 51... Qf3+ {[%clk 0:00:08.4]} 52. Kg1 {[%clk 0:04:38.8]}
52... Qxg4+ {[%clk 0:00:09.6]} 53. Kf2 {[%clk 0:04:40.3]} 53... Kxh6 {[%clk
0:00:06.9]} 54. Qc6+ {[%clk 0:04:39.5]} 54... Kg7 {[%clk 0:00:07.6]} 55. b5
{[%clk 0:04:40.8]} 55... Qd4+ {[%clk 0:00:07.8]} 56. Ke2 {[%clk 0:04:40.1]}
56... Qb2+ {[%clk 0:00:05.4]} 57. Kd3 {[%clk 0:04:40.5]} 57... Qb3+ {[%clk
0:00:06.6]} 58. Kd4 {[%clk 0:04:41.4]} 58... Qb4+ {[%clk 0:00:06.4]} 59. Kd5
{[%clk 0:04:42]} 59... g4 {[%clk 0:00:04.1]} 60. b6 {[%clk 0:04:39.7]} 60...
Qb3+ {[%clk 0:00:04.2]} 61. Kd6 {[%clk 0:04:39.9]} 61... Qb4+ {[%clk 0:00:03.6]}
62. Kd7 {[%clk 0:04:38.9]} 62... Qd4+ {[%clk 0:00:03.8]} 63. Kc8 {[%clk
0:04:39.7]} 63... g3 {[%clk 0:00:04.2]} 64. b7 {[%clk 0:04:40.7]} 64... Qg4+
{[%clk 0:00:05.2]} 65. Kc7 {[%clk 0:04:34.1]} 65... g2 {[%clk 0:00:06.1]} 66.
Qc3+ {[%clk 0:04:28.1]} 66... Kg6 {[%clk 0:00:05.1]} 67. Qd3+ {[%clk 0:04:26.1]}
67... Kg7 {[%clk 0:00:04.5]} 68. Qc3+ {[%clk 0:04:12.5]} 68... Kg6 {[%clk
0:00:05.8]} 69. Qc2+ {[%clk 0:04:13.9]} 69... Kg7 {[%clk 0:00:04.4]} 70. Qb2+
{[%clk 0:04:14.5]} 70... Kf7 {[%clk 0:00:05.2]} 71. Qf2+ {[%clk 0:04:09.7]}
71... Kg7 {[%clk 0:00:04.7]} 72. b8=Q {[%clk 0:04:10.6]} 72... g1=Q {[%clk
0:00:04.5]} 73. Qbf8+ {[%clk 0:04:07.2]} 73... Kg6 {[%clk 0:00:05.9]} 74. Q2f6+
{[%clk 0:04:07.2]} 74... Kh5 {[%clk 0:00:07.3]} 75. Q8h6# {[%clk 0:04:08.2]} 1-0